[Event "Early-Titled-Tuesday-Blitz-February-06-2024"]
[Site "Chess.com"]
[Date "2024.02.06"]
[Round "7"]
[White "FontVella8"]
[Black "h4parah5"]
[Result "0-1"]
[WhiteElo "2761"]
[BlackElo "2937"]
[TimeControl "180+1"]
[EndTime "9:19:42 PST"]
[Termination "h4parah5 won by resignation"]

1. e4 {[%clk 0:03:00.4]} 1... c5 {[%clk 0:03:00.2]} 2. Nf3 {[%clk 0:03:00.8]}
2... e6 {[%clk 0:03:00.9]} 3. d4 {[%clk 0:03:01]} 3... cxd4 {[%clk 0:03:01.8]}
4. Nxd4 {[%clk 0:03:01.9]} 4... Nc6 {[%clk 0:03:00.7]} 5. Nc3 {[%clk 0:03:02.2]}
5... Qc7 {[%clk 0:03:00.3]} 6. Be3 {[%clk 0:03:02.5]} 6... a6 {[%clk 0:02:59.9]}
7. a3 {[%clk 0:03:03]} 7... b5 {[%clk 0:02:58]} 8. Nxc6 {[%clk 0:03:01.3]} 8...
Qxc6 {[%clk 0:02:54.6]} 9. Be2 {[%clk 0:03:01.1]} 9... Bb7 {[%clk 0:02:54.1]}
10. O-O {[%clk 0:03:00.1]} 10... Rc8 {[%clk 0:02:53]} 11. Qd3 {[%clk 0:02:58.3]}
11... Bc5 {[%clk 0:02:47.5]} 12. Rfd1 {[%clk 0:02:54.4]} 12... Bxe3 {[%clk
0:02:46.3]} 13. Qxe3 {[%clk 0:02:54.6]} 13... Nf6 {[%clk 0:02:40.4]} 14. Bf3
{[%clk 0:02:52.8]} 14... Qc5 {[%clk 0:02:38]} 15. Qxc5 {[%clk 0:02:13.9]} 15...
Rxc5 {[%clk 0:02:38.9]} 16. Rd3 {[%clk 0:02:14.2]} 16... Bc6 {[%clk 0:02:25.3]}
17. Re1 {[%clk 0:02:01.6]} 17... Re5 {[%clk 0:02:13.5]} 18. Kf1 {[%clk
0:01:51.8]} 18... Ke7 {[%clk 0:02:09.9]} 19. g3 {[%clk 0:01:51.3]} 19... g5
{[%clk 0:02:08.6]} 20. h3 {[%clk 0:01:48.1]} 20... h5 {[%clk 0:02:07.6]} 21. Bg2
{[%clk 0:01:42.5]} 21... g4 {[%clk 0:02:01.6]} 22. h4 {[%clk 0:01:43]} 22... a5
{[%clk 0:01:55]} 23. Rd4 {[%clk 0:01:43.2]} 23... Rg8 {[%clk 0:01:52.1]} 24. Re3
{[%clk 0:01:34.4]} 24... Rb8 {[%clk 0:01:49.7]} 25. Ke2 {[%clk 0:00:52.5]} 25...
b4 {[%clk 0:01:47.4]} 26. axb4 {[%clk 0:00:52.6]} 26... Rxb4 {[%clk 0:01:37.6]}
27. Rxb4 {[%clk 0:00:46.9]} 27... axb4 {[%clk 0:01:38.5]} 28. Na2 {[%clk
0:00:47.6]} 28... Rb5 {[%clk 0:01:17.2]} 29. f4 {[%clk 0:00:19.9]} 29... gxf3+
{[%clk 0:01:10.2]} 30. Bxf3 {[%clk 0:00:20.1]} 30... d6 {[%clk 0:01:07.7]} 31.
Rb3 {[%clk 0:00:15.9]} 31... Nxe4 {[%clk 0:01:03.6]} 32. Bxe4 {[%clk 0:00:12.2]}
32... Bxe4 {[%clk 0:01:04.5]} 33. Rxb4 {[%clk 0:00:11.6]} 33... Re5 {[%clk
0:01:03.5]} 34. Kd2 {[%clk 0:00:10.1]} 34... Bg6 {[%clk 0:00:52.8]} 35. Nc3
{[%clk 0:00:09.2]} 35... Rc5 {[%clk 0:00:47]} 36. Rb7+ {[%clk 0:00:08.4]} 36...
Kd8 {[%clk 0:00:46.3]} 37. b4 {[%clk 0:00:09]} 37... Rc7 {[%clk 0:00:45.5]} 38.
Rxc7 {[%clk 0:00:08.2]} 38... Kxc7 {[%clk 0:00:46.4]} 39. Ne2 {[%clk 0:00:08.6]}
39... e5 {[%clk 0:00:40.8]} 40. c4 {[%clk 0:00:08.9]} 40... Bf5 {[%clk
0:00:39.1]} 41. Nc3 {[%clk 0:00:05.5]} 41... Be6 {[%clk 0:00:38.6]} 42. Kd3
{[%clk 0:00:05.5]} 42... f5 {[%clk 0:00:38.9]} 43. c5 {[%clk 0:00:04.7]} 43...
dxc5 {[%clk 0:00:37.5]} 44. bxc5 {[%clk 0:00:03.5]} 44... Kc6 {[%clk 0:00:38.1]}
45. Na4 {[%clk 0:00:03.7]} 45... Bb3 {[%clk 0:00:36.6]} 46. Nc3 {[%clk
0:00:02.9]} 46... Kxc5 {[%clk 0:00:36.6]} 47. Ke3 {[%clk 0:00:03.8]} 47... Bd5
{[%clk 0:00:33.8]} 48. Nd1 {[%clk 0:00:03.2]} 48... Bc6 {[%clk 0:00:31.8]} 49.
Nf2 {[%clk 0:00:03.7]} 49... Bb5 {[%clk 0:00:30.7]} 50. Nh3 {[%clk 0:00:03.4]}
50... Kc4 {[%clk 0:00:28.8]} 51. Ng5 {[%clk 0:00:03.4]} 51... Be8 {[%clk
0:00:27.6]} 52. Nf3 {[%clk 0:00:02.1]} 52... Kd5 {[%clk 0:00:27.6]} 53. Ng5
{[%clk 0:00:02.4]} 53... Ba4 {[%clk 0:00:26.4]} 54. Nh3 {[%clk 0:00:02.5]} 54...
Bd1 {[%clk 0:00:26.2]} 55. Ng5 {[%clk 0:00:03]} 55... Bg4 {[%clk 0:00:26.5]} 56.
Nf7 {[%clk 0:00:03.1]} 56... Ke6 {[%clk 0:00:26.4]} 57. Ng5+ {[%clk 0:00:03.4]}
57... Kf6 {[%clk 0:00:26.5]} 58. Kd3 {[%clk 0:00:03.9]} 58... Bd1 {[%clk
0:00:20.7]} 59. Ke3 {[%clk 0:00:04.3]} 59... Ba4 {[%clk 0:00:20.8]} 60. Nh7+
{[%clk 0:00:04.6]} 60... Kg6 {[%clk 0:00:20.7]} 61. Ng5 {[%clk 0:00:05.5]} 61...
Bd7 {[%clk 0:00:20.8]} 62. Nf3 {[%clk 0:00:05.4]} 62... Kf6 {[%clk 0:00:20.3]}
63. Ng5 {[%clk 0:00:06.1]} 63... Bc6 {[%clk 0:00:21]} 64. Nh3 {[%clk 0:00:05.8]}
64... Bg2 {[%clk 0:00:17.5]} 65. Ng5 {[%clk 0:00:05.9]} 65... Bd5 {[%clk
0:00:17.6]} 66. Nh7+ {[%clk 0:00:06.1]} 66... Ke7 {[%clk 0:00:17]} 67. Ng5
{[%clk 0:00:06.8]} 67... Kd6 {[%clk 0:00:15.3]} 68. Nh3 {[%clk 0:00:06.3]} 68...
Kc5 {[%clk 0:00:15.8]} 69. Ng5 {[%clk 0:00:06.7]} 69... Kc4 {[%clk 0:00:16.2]}
70. Nh7 {[%clk 0:00:06.8]} 70... Kc3 {[%clk 0:00:15.2]} 71. Nf6 {[%clk
0:00:05.8]} 71... Bf7 {[%clk 0:00:15.8]} 72. Nd7 {[%clk 0:00:06]} 72... e4
{[%clk 0:00:15.8]} 73. Ne5 {[%clk 0:00:04.6]} 73... Be8 {[%clk 0:00:15.6]} 74.
Kf4 {[%clk 0:00:02]} 74... Kd4 {[%clk 0:00:15.3]} 75. g4 {[%clk 0:00:01.2]}
75... hxg4 {[%clk 0:00:13.7]} 76. h5 {[%clk 0:00:01.6]} 76... Bxh5 {[%clk
0:00:13.2]} 77. Nc6+ {[%clk 0:00:02]} 77... Kd3 {[%clk 0:00:12.6]} 78. Ne5+
{[%clk 0:00:01.5]} 78... Kd2 {[%clk 0:00:12.5]} 79. Nc4+ {[%clk 0:00:01.5]}
79... Ke2 {[%clk 0:00:12.3]} 80. Ne3 {[%clk 0:00:02.4]} 80... g3 {[%clk
0:00:12.2]} 81. Nxf5 {[%clk 0:00:01.6]} 81... g2 {[%clk 0:00:12.4]} 82. Ng3+
{[%clk 0:00:01.5]} 82... Kf2 {[%clk 0:00:12.6]} 83. Nxe4+ {[%clk 0:00:01.7]}
83... Ke1 {[%clk 0:00:12.7]} 84. Ng3 {[%clk 0:00:01.4]} 84... g1=Q {[%clk
0:00:12.9]} 85. Nxh5 {[%clk 0:00:01.8]} 85... Ke2 {[%clk 0:00:13.5]} 86. Ng3+
{[%clk 0:00:01.8]} 86... Kf2 {[%clk 0:00:13.1]} 87. Ne4+ {[%clk 0:00:02.1]}
87... Kg2 {[%clk 0:00:13.3]} 0-1

[Event "Early-Titled-Tuesday-Blitz-February-06-2024"]
[Site "Chess.com"]
[Date "2024.02.06"]
[Round "7"]
[White "RobertoJBM"]
[Black "JoachimBN"]
[Result "1/2-1/2"]
[WhiteElo "2807"]
[BlackElo "2621"]
[TimeControl "180+1"]
[EndTime "9:19:44 PST"]
[Termination "Game drawn by repetition"]

1. d4 {[%clk 0:03:00.9]} 1... Nf6 {[%clk 0:02:58.3]} 2. Nf3 {[%clk 0:03:00.5]}
2... g6 {[%clk 0:02:58.4]} 3. e3 {[%clk 0:03:01.4]} 3... Bg7 {[%clk 0:02:58.7]}
4. Be2 {[%clk 0:02:59.3]} 4... O-O {[%clk 0:02:58.8]} 5. O-O {[%clk 0:02:59.9]}
5... b6 {[%clk 0:02:59.1]} 6. c4 {[%clk 0:02:59.8]} 6... Bb7 {[%clk 0:02:59.5]}
7. b3 {[%clk 0:03:00.3]} 7... e6 {[%clk 0:02:57.1]} 8. Ba3 {[%clk 0:03:00]} 8...
Re8 {[%clk 0:02:55.1]} 9. Nc3 {[%clk 0:03:00.5]} 9... Ne4 {[%clk 0:02:54.8]} 10.
Nxe4 {[%clk 0:02:59.7]} 10... Bxe4 {[%clk 0:02:55.7]} 11. Rc1 {[%clk 0:02:59]}
11... a5 {[%clk 0:02:54.8]} 12. Nd2 {[%clk 0:02:57]} 12... Bb7 {[%clk
0:02:54.3]} 13. Bf3 {[%clk 0:02:57]} 13... Qc8 {[%clk 0:02:53.5]} 14. Re1 {[%clk
0:02:56.2]} 14... Bxf3 {[%clk 0:02:44.7]} 15. Nxf3 {[%clk 0:02:54.5]} 15... Qb7
{[%clk 0:02:43.7]} 16. e4 {[%clk 0:02:52.4]} 16... d6 {[%clk 0:02:31.5]} 17. d5
{[%clk 0:02:49.7]} 17... Na6 {[%clk 0:02:12.1]} 18. Qd2 {[%clk 0:02:47.9]} 18...
Nc5 {[%clk 0:02:07.9]} 19. h4 {[%clk 0:02:18]} 19... h6 {[%clk 0:01:59.8]} 20.
Rcd1 {[%clk 0:02:15.2]} 20... Re7 {[%clk 0:01:51.3]} 21. Bxc5 {[%clk 0:01:53.6]}
21... bxc5 {[%clk 0:01:46]} 22. Re3 {[%clk 0:01:51.1]} 22... exd5 {[%clk
0:01:44]} 23. exd5 {[%clk 0:01:36.9]} 23... Rxe3 {[%clk 0:01:43.5]} 24. Qxe3
{[%clk 0:01:37.8]} 24... a4 {[%clk 0:01:44]} 25. g3 {[%clk 0:01:35.6]} 25...
axb3 {[%clk 0:01:43.5]} 26. axb3 {[%clk 0:01:36.5]} 26... Rb8 {[%clk 0:01:38.6]}
27. Rd3 {[%clk 0:01:35.1]} 27... Qc8 {[%clk 0:01:38.4]} 28. Qe4 {[%clk
0:01:29.7]} 28... Qd7 {[%clk 0:01:36.3]} 29. Re3 {[%clk 0:01:28.1]} 29... Bf6
{[%clk 0:01:27.2]} 30. Kg2 {[%clk 0:01:27.5]} 30... Kg7 {[%clk 0:01:27.1]} 31.
Qf4 {[%clk 0:01:20.4]} 31... h5 {[%clk 0:01:25.8]} 32. Qe4 {[%clk 0:01:16.9]}
32... Ra8 {[%clk 0:01:23.2]} 33. Ng5 {[%clk 0:01:14.8]} 33... Rb8 {[%clk
0:01:11.9]} 34. Rf3 {[%clk 0:01:08.1]} 34... Qg4 {[%clk 0:01:04.1]} 35. Rf4
{[%clk 0:01:03.6]} 35... Qd7 {[%clk 0:00:56.9]} 36. Qf3 {[%clk 0:00:56.1]} 36...
Bxg5 {[%clk 0:00:55.9]} 37. hxg5 {[%clk 0:00:57]} 37... Qe7 {[%clk 0:00:55.2]}
38. Rf6 {[%clk 0:00:51.7]} 38... Kg8 {[%clk 0:00:50.7]} 39. Kh3 {[%clk
0:00:47.4]} 39... Rf8 {[%clk 0:00:46.6]} 40. Kg2 {[%clk 0:00:44.6]} 40... Qe5
{[%clk 0:00:45.9]} 41. Qf4 {[%clk 0:00:44.1]} 41... Qxf4 {[%clk 0:00:45.4]} 42.
Rxf4 {[%clk 0:00:43.7]} 42... Rb8 {[%clk 0:00:45.9]} 43. Rf3 {[%clk 0:00:43.5]}
43... Ra8 {[%clk 0:00:44.4]} 44. Re3 {[%clk 0:00:43.3]} 44... Kf8 {[%clk
0:00:44.2]} 45. f4 {[%clk 0:00:43.3]} 45... Ra2+ {[%clk 0:00:44]} 46. Kf3 {[%clk
0:00:43.7]} 46... Rb2 {[%clk 0:00:44.1]} 47. Ke4 {[%clk 0:00:40.6]} 47... Rg2
{[%clk 0:00:36]} 48. Kf3 {[%clk 0:00:40.8]} 48... Rb2 {[%clk 0:00:35.9]} 49. Ke4
{[%clk 0:00:38.9]} 49... Rf2 {[%clk 0:00:36.1]} 50. Rd3 {[%clk 0:00:32.7]} 50...
f6 {[%clk 0:00:35]} 51. gxf6 {[%clk 0:00:32.3]} 51... Kf7 {[%clk 0:00:35.2]} 52.
Rf3 {[%clk 0:00:30.3]} 52... Rb2 {[%clk 0:00:34.8]} 53. Re3 {[%clk 0:00:29.2]}
53... Kxf6 {[%clk 0:00:34.3]} 54. Kf3 {[%clk 0:00:29.8]} 54... Rb1 {[%clk
0:00:30.3]} 55. Kg2 {[%clk 0:00:26.3]} 55... Kf5 {[%clk 0:00:29.2]} 56. Kh3
{[%clk 0:00:25.8]} 56... Rh1+ {[%clk 0:00:28.5]} 57. Kg2 {[%clk 0:00:25.9]}
57... Rb1 {[%clk 0:00:29]} 58. Kh3 {[%clk 0:00:26.4]} 58... Rb2 {[%clk
0:00:29.1]} 59. Re7 {[%clk 0:00:22.4]} 59... Rxb3 {[%clk 0:00:25.8]} 60. Rxc7
{[%clk 0:00:22.6]} 60... Rb4 {[%clk 0:00:22.1]} 61. Rf7+ {[%clk 0:00:19.9]}
61... Ke4 {[%clk 0:00:22.5]} 62. Rf6 {[%clk 0:00:20.2]} 62... Rxc4 {[%clk
0:00:22.7]} 63. Rxd6 {[%clk 0:00:19.6]} 63... Kf5 {[%clk 0:00:23.1]} 64. Rc6
{[%clk 0:00:19]} 64... Rc3 {[%clk 0:00:22.5]} 65. d6 {[%clk 0:00:17.1]} 65... c4
{[%clk 0:00:20.1]} 66. d7 {[%clk 0:00:17.1]} 66... Rd3 {[%clk 0:00:20]} 67. Rc5+
{[%clk 0:00:16.1]} 67... Ke6 {[%clk 0:00:19]} 68. Rc6+ {[%clk 0:00:15.7]} 68...
Kf5 {[%clk 0:00:16.9]} 69. Rc5+ {[%clk 0:00:14.6]} 69... Kf6 {[%clk 0:00:16.9]}
70. Rxc4 {[%clk 0:00:15.5]} 70... Rxd7 {[%clk 0:00:16.8]} 71. Rc6+ {[%clk
0:00:15.9]} 71... Kf5 {[%clk 0:00:17.3]} 72. Rc5+ {[%clk 0:00:16.2]} 72... Kf6
{[%clk 0:00:17.7]} 73. Kh4 {[%clk 0:00:16.7]} 73... Re7 {[%clk 0:00:17.7]} 74.
Rc6+ {[%clk 0:00:15.3]} 74... Kf5 {[%clk 0:00:17.7]} 75. Rc5+ {[%clk 0:00:15.6]}
75... Kf6 {[%clk 0:00:18.3]} 76. Rb5 {[%clk 0:00:15.9]} 76... Re6 {[%clk
0:00:18.5]} 77. g4 {[%clk 0:00:15.3]} 77... hxg4 {[%clk 0:00:18.8]} 78. Kxg4
{[%clk 0:00:16.2]} 78... Rd6 {[%clk 0:00:19.5]} 79. Ra5 {[%clk 0:00:15.7]} 79...
Rc6 {[%clk 0:00:20]} 80. Ra8 {[%clk 0:00:15.7]} 80... Rb6 {[%clk 0:00:20]} 81.
Rc8 {[%clk 0:00:15.8]} 81... Kf7 {[%clk 0:00:20.2]} 82. Rc7+ {[%clk 0:00:15.9]}
82... Kf6 {[%clk 0:00:20.5]} 83. Rc5 {[%clk 0:00:16.8]} 83... Rd6 {[%clk
0:00:20.9]} 84. Re5 {[%clk 0:00:16.8]} 84... Rc6 {[%clk 0:00:21.2]} 85. Re1
{[%clk 0:00:17.1]} 85... Rb6 {[%clk 0:00:21.7]} 86. Rc1 {[%clk 0:00:17.2]} 86...
Ra6 {[%clk 0:00:22.1]} 87. Rc5 {[%clk 0:00:17.1]} 87... Rd6 {[%clk 0:00:22.3]}
88. Rb5 {[%clk 0:00:17.2]} 88... Rc6 {[%clk 0:00:22.5]} 89. Rb4 {[%clk
0:00:17.6]} 89... Ra6 {[%clk 0:00:22.4]} 90. Rd4 {[%clk 0:00:17.7]} 90... Rc6
{[%clk 0:00:22.5]} 91. Rd8 {[%clk 0:00:17.7]} 91... Rb6 {[%clk 0:00:22.6]} 92.
Rh8 {[%clk 0:00:17.9]} 92... Kg7 {[%clk 0:00:22.8]} 93. Rh3 {[%clk 0:00:18]}
93... Kf6 {[%clk 0:00:23.2]} 94. Rg3 {[%clk 0:00:18.4]} 94... Rb4 {[%clk
0:00:23.4]} 95. Rc3 {[%clk 0:00:16.1]} 95... Rb6 {[%clk 0:00:22.3]} 96. Rc4
{[%clk 0:00:15.9]} 96... Ra6 {[%clk 0:00:22.6]} 97. Rc5 {[%clk 0:00:16.3]} 97...
Rb6 {[%clk 0:00:22.8]} 98. Rc4 {[%clk 0:00:16.7]} 98... Ra6 {[%clk 0:00:23]} 99.
Rc5 {[%clk 0:00:17]} 1/2-1/2

[Event "Early-Titled-Tuesday-Blitz-February-06-2024"]
[Site "Chess.com"]
[Date "2024.02.06"]
[Round "7"]
[White "HATilay"]
[Black "APOKALIPSA13"]
[Result "1-0"]
[WhiteElo "2521"]
[BlackElo "2223"]
[TimeControl "180+1"]
[EndTime "9:19:47 PST"]
[Termination "HATilay won by checkmate"]

1. d4 {[%clk 0:03:00.9]} 1... e5 {[%clk 0:03:00.9]} 2. dxe5 {[%clk 0:02:58.3]}
2... Nc6 {[%clk 0:03:01.1]} 3. Nf3 {[%clk 0:02:58.3]} 3... Qe7 {[%clk 0:03:01]}
4. g3 {[%clk 0:02:45.8]} 4... Nxe5 {[%clk 0:03:00.5]} 5. Nxe5 {[%clk 0:02:46.7]}
5... Qxe5 {[%clk 0:03:01.3]} 6. Bg2 {[%clk 0:02:47.5]} 6... c6 {[%clk
0:03:01.3]} 7. O-O {[%clk 0:02:47.9]} 7... d5 {[%clk 0:03:01.2]} 8. Nc3 {[%clk
0:02:47.1]} 8... h5 {[%clk 0:02:59.9]} 9. e4 {[%clk 0:02:46.1]} 9... d4 {[%clk
0:02:59.1]} 10. Bf4 {[%clk 0:02:46.7]} 10... Qc5 {[%clk 0:02:57.5]} 11. Ne2
{[%clk 0:02:44.8]} 11... g5 {[%clk 0:02:55.7]} 12. b4 {[%clk 0:02:34.9]} 12...
Qxb4 {[%clk 0:02:51.3]} 13. Be5 {[%clk 0:02:33.8]} 13... f6 {[%clk 0:02:48.8]}
14. Bxd4 {[%clk 0:02:33.9]} 14... Bg4 {[%clk 0:02:45.1]} 15. c3 {[%clk
0:02:28.4]} 15... Qc4 {[%clk 0:02:43.3]} 16. f3 {[%clk 0:02:18.6]} 16... Be6
{[%clk 0:02:41.4]} 17. Rb1 {[%clk 0:02:18.4]} 17... b6 {[%clk 0:02:39.8]} 18.
Rf2 {[%clk 0:02:12]} 18... Rd8 {[%clk 0:02:38.9]} 19. Bf1 {[%clk 0:02:04]} 19...
c5 {[%clk 0:02:37.2]} 20. Nc1 {[%clk 0:02:04.1]} 20... Qxc3 {[%clk 0:02:28.3]}
21. Qa4+ {[%clk 0:02:02.1]} 21... Bd7 {[%clk 0:02:24.4]} 22. Qxd7+ {[%clk
0:02:01.6]} 22... Rxd7 {[%clk 0:02:25.3]} 23. Bxc3 {[%clk 0:02:02.2]} 23... Rd1
{[%clk 0:02:21.4]} 24. Rd2 {[%clk 0:01:58.7]} 24... Rxd2 {[%clk 0:02:17.9]} 25.
Bxd2 {[%clk 0:01:59.6]} 25... h4 {[%clk 0:02:15.4]} 26. Bb5+ {[%clk 0:02:00.1]}
26... Kf7 {[%clk 0:02:14.8]} 27. Bc3 {[%clk 0:01:56.2]} 27... Bd6 {[%clk
0:02:10.4]} 28. Ne2 {[%clk 0:01:55.3]} 28... hxg3 {[%clk 0:02:09.1]} 29. hxg3
{[%clk 0:01:55.2]} 29... Kg7 {[%clk 0:02:07.8]} 30. Rd1 {[%clk 0:01:54.7]} 30...
Bb8 {[%clk 0:02:02.6]} 31. Rd7+ {[%clk 0:01:54.3]} 31... Kg6 {[%clk 0:02:01.3]}
32. Rb7 {[%clk 0:01:53.7]} 32... Nh6 {[%clk 0:01:59.7]} 33. e5 {[%clk
0:01:53.9]} 33... fxe5 {[%clk 0:01:56.1]} 34. Bd3+ {[%clk 0:01:54.3]} 34... Kf6
{[%clk 0:01:55.1]} 35. f4 {[%clk 0:01:54.8]} 35... gxf4 {[%clk 0:01:53.5]} 36.
gxf4 {[%clk 0:01:55.5]} 36... Rg8+ {[%clk 0:01:52.1]} 37. Kf1 {[%clk 0:01:55]}
37... Ng4 {[%clk 0:01:51.8]} 38. Ng3 {[%clk 0:01:07.1]} 38... Rd8 {[%clk
0:01:49.4]} 39. Ke2 {[%clk 0:01:02.7]} 39... Ke6 {[%clk 0:01:42.6]} 40. Bf5+
{[%clk 0:01:00.9]} 40... Kd5 {[%clk 0:01:39.9]} 41. Bxg4 {[%clk 0:01:00.5]}
41... exf4 {[%clk 0:01:37.1]} 42. Nf5 {[%clk 0:00:57.6]} 42... Kc4 {[%clk
0:01:31.8]} 43. Bd2 {[%clk 0:00:54.1]} 43... b5 {[%clk 0:01:27.5]} 44. Bh5
{[%clk 0:00:45.6]} 44... Kd5 {[%clk 0:01:22.6]} 45. Nh4 {[%clk 0:00:38.2]} 45...
Rh8 {[%clk 0:01:16.8]} 46. Bf7+ {[%clk 0:00:38.3]} 46... Kc6 {[%clk 0:01:15]}
47. Rxb8 {[%clk 0:00:28.6]} 47... Rxb8 {[%clk 0:01:13.9]} 48. Bxf4 {[%clk
0:00:22.7]} 48... Rf8 {[%clk 0:01:13.3]} 49. Ng6 {[%clk 0:00:23.3]} 49... Rxf7
{[%clk 0:01:05.1]} 50. Ne5+ {[%clk 0:00:23.8]} 50... Kd5 {[%clk 0:01:02.4]} 51.
Nxf7 {[%clk 0:00:24.4]} 51... Kc4 {[%clk 0:01:00.6]} 52. Kd2 {[%clk 0:00:24.2]}
52... Kb4 {[%clk 0:00:59.4]} 53. Kc2 {[%clk 0:00:24.7]} 53... a5 {[%clk
0:00:52.5]} 54. Kb2 {[%clk 0:00:19.6]} 54... c4 {[%clk 0:00:51.1]} 55. Bd6+
{[%clk 0:00:19.1]} 55... Ka4 {[%clk 0:00:51.1]} 56. Ne5 {[%clk 0:00:18.9]} 56...
c3+ {[%clk 0:00:43.2]} 57. Kxc3 {[%clk 0:00:18.8]} 57... b4+ {[%clk 0:00:43.7]}
58. Kb2 {[%clk 0:00:19]} 58... Kb5 {[%clk 0:00:43.5]} 59. Bf8 {[%clk 0:00:18.9]}
59... a4 {[%clk 0:00:41.3]} 60. Nd3 {[%clk 0:00:19.4]} 60... b3 {[%clk
0:00:37.4]} 61. a3 {[%clk 0:00:19.8]} 61... Kc4 {[%clk 0:00:36.6]} 62. Nc5
{[%clk 0:00:19.5]} 62... Kb5 {[%clk 0:00:36.5]} 63. Ne4 {[%clk 0:00:18.5]} 63...
Kc4 {[%clk 0:00:36.5]} 64. Nc3 {[%clk 0:00:19.3]} 64... Kd4 {[%clk 0:00:32.3]}
65. Nxa4 {[%clk 0:00:19.9]} 65... Kd5 {[%clk 0:00:33]} 66. Kxb3 {[%clk
0:00:19.6]} 66... Kc6 {[%clk 0:00:33.9]} 67. Nc5 {[%clk 0:00:20]} 67... Kb6
{[%clk 0:00:33.9]} 68. a4 {[%clk 0:00:20.4]} 68... Ka5 {[%clk 0:00:34.1]} 69.
Nb7+ {[%clk 0:00:20.3]} 69... Ka6 {[%clk 0:00:34.2]} 70. Nd6 {[%clk 0:00:21.2]}
70... Ka5 {[%clk 0:00:34.3]} 71. Nc4+ {[%clk 0:00:21.8]} 71... Ka6 {[%clk
0:00:34.4]} 72. Kb4 {[%clk 0:00:22.7]} 72... Ka7 {[%clk 0:00:34.7]} 73. a5
{[%clk 0:00:23.6]} 73... Kb7 {[%clk 0:00:35.4]} 74. Kb5 {[%clk 0:00:24.1]} 74...
Ka7 {[%clk 0:00:35.9]} 75. a6 {[%clk 0:00:24.7]} 75... Kb8 {[%clk 0:00:36.7]}
76. Bd6+ {[%clk 0:00:24.6]} 76... Ka8 {[%clk 0:00:37.6]} 77. Nb6+ {[%clk
0:00:21.5]} 77... Ka7 {[%clk 0:00:38.5]} 78. Nc8+ {[%clk 0:00:21.9]} 78... Ka8
{[%clk 0:00:38.8]} 79. Bb4 {[%clk 0:00:22]} 79... Kb8 {[%clk 0:00:38.5]} 80. Nd6
{[%clk 0:00:22.6]} 80... Ka8 {[%clk 0:00:37]} 81. Nc8 {[%clk 0:00:19.6]} 81...
Kb8 {[%clk 0:00:36.8]} 82. Nb6 {[%clk 0:00:20.2]} 82... Ka7 {[%clk 0:00:36.1]}
83. Bc5 {[%clk 0:00:20.3]} 83... Kb8 {[%clk 0:00:36.3]} 84. Nd7+ {[%clk
0:00:20.5]} 84... Ka8 {[%clk 0:00:36.4]} 85. Ne5 {[%clk 0:00:21.1]} 85... Kb8
{[%clk 0:00:36.4]} 86. Kc6 {[%clk 0:00:20.5]} 86... Ka8 {[%clk 0:00:36.4]} 87.
Nc4 {[%clk 0:00:20.9]} 87... Kb8 {[%clk 0:00:36.3]} 88. Kb6 {[%clk 0:00:10.7]}
88... Ka8 {[%clk 0:00:36.3]} 89. Nd6 {[%clk 0:00:10.7]} 89... Kb8 {[%clk
0:00:36.2]} 90. Nb5 {[%clk 0:00:11.5]} 90... Ka8 {[%clk 0:00:36]} 91. Nc7+
{[%clk 0:00:12.2]} 91... Kb8 {[%clk 0:00:35.5]} 92. a7+ {[%clk 0:00:13]} 92...
Kc8 {[%clk 0:00:36.4]} 93. a8=Q+ {[%clk 0:00:13.8]} 93... Kd7 {[%clk 0:00:37.2]}
94. Qd5+ {[%clk 0:00:14.4]} 94... Kc8 {[%clk 0:00:36.1]} 95. Ne6 {[%clk
0:00:13.7]} 95... Kb8 {[%clk 0:00:35.7]} 96. Qd8# {[%clk 0:00:14.6]} 1-0